Cogmind - Beta 16.1 @@@ ROGUE MODE // 2026.03.05 @ 19:07:15 Player: Kakograf Result: Destroyed by Y-45 Defender with Beam Rifle Performance ------------- Evolutions (1) 500 Regions Visited (3) 600 Robots Destroyed (45) 225 Value Destroyed (1428) 1428 Prototype IDs (6) 120 Alien Tech Used (0) 0 Bonus (0) 0 TOTAL SCORE: 2873 Bonus ------- None Cogmind --------- Core Integrity 0/400 Matter 293/300 Energy 277/280 System Corruption 5% Temperature Cool (9) Movement Treading (160) Location -9/Storage Parts ------- > --- POWER (1) -------- Heavy Ion Engine > --- PROPULSION (2) --- Improved Treads Improved Treads > --- UTILITY (4) ------ Small Storage Unit Visual Processing Unit Improved Targeting Computer Tractor Beam > --- WEAPON (2) ------- Improved Assault Rifle Improved Heavy Machine Gun > --- INVENTORY (8) ---- Improved Ion Engine Cooled Ion Engine Improved Treads Improved Treads Shield Generator Drone Bay (2/2) Drone Bay (2/2) Rocket Launcher Peak State ------------ > --- POWER ------------ Heavy Ion Engine > --- PROPULSION ------- Improved Treads Improved Treads > --- UTILITY ---------- Small Storage Unit Visual Processing Unit Improved Targeting Computer Tractor Beam > --- WEAPON ----------- Improved Assault Rifle Improved Heavy Machine Gun > --- INVENTORY -------- Improved Ion Engine Cooled Ion Engine Improved Treads Improved Treads Shield Generator Drone Bay Drone Bay Rocket Launcher [Rating: 24] Favorites ----------- Power Improved Ion Engine Engine Improved Ion Engine Propulsion Improved Aluminum Leg Treads Improved Treads Leg Improved Aluminum Leg Hover Unit Improved Hover Unit Utility Small Storage Unit Device Tractor Beam Storage Small Storage Unit Processor Visual Processing Unit Weapon EM Pulse Gun Energy Gun EM Pulse Gun Ballistic Gun Improved Heavy Machine Gun Ballistic Cannon Light Cannon Launcher Rocket Launcher Impact Weapon Maul Build | -11 -10 -9 -9 ------- Run | Yrd Mat Mat Sto Slots Evolved 2 | . . 2 . Power . | . . . . Propulsion . | . . . . Utility 2 | . . 2 . Weapon . | . . . . Parts Attached 35 | 6 3 11 15 Power 9 | 1 1 3 4 Engine 9 | 1 1 3 4 Core . | . . . . Reactor . | . . . . Propulsion 9 | 2 . 4 3 Treads 2 | . . . 2 Leg 5 | 2 . 2 1 Wheel . | . . . . Hover 2 | . . 2 . Flight . | . . . . Utility 8 | 1 1 2 4 Device 4 | . . 2 2 Storage 1 | 1 . . . Processor 3 | . 1 . 2 Hackware . | . . . . Protection . | . . . . Artifact . | . . . . Weapon 9 | 2 1 2 4 Energy Gun 2 | 2 . . . Energy Cannon . | . . . . Ballistic Gun 2 | . . . 2 Ballistic Cannon 1 | . . . 1 Launcher 2 | . 1 . 1 Special Weapon . | . . . . Impact Weapon 2 | . . 2 . Slashing Weapon . | . . . . Piercing Weapon . | . . . . Special Melee Weapon . | . . . . Unidentified Prototypes 4 | . . . 4 Parts Lost 9 | . . 7 2 Power 3 | . . 3 . Propulsion 3 | . . 1 2 Utility 3 | . . 3 . Weapon . | . . . . Highest Loss Streak 4 | . . 4 1 To Critical Strikes . | . . . . Average Backups 6 | . 4 6 7 Power 1 | . 1 . 1 Propulsion 1 | . . 1 2 Utility . | . . . 1 Weapon 3 | . 3 4 2 Tool/Special . | . . . . Unused Backups 13 | . 2 2 9 Power 1 | . 1 . . Propulsion 4 | . . . 4 Utility 3 | . . . 3 Weapon 5 | . 1 2 2 Tool/Special . | . . . . Average Slot Usage (%) 87 | . 86 83 89 Engine 11 | . 14 10 10 Treads 6 | . . . 12 Leg 13 | . 28 14 6 Hover 1 | . . 4 . Device 7 | . . 9 9 Storage 11 | . 14 11 10 Processor 11 | . 1 11 17 Energy Gun 6 | . 26 1 . Ballistic Gun 7 | . . . 14 Launcher 3 | . 1 1 5 Impact Weapon 5 | . . 18 . Peak Build Rating 24 | 6 10 15 24 Average Rating 14 | 4 6 12 19 On Entrance 6 | . 6 10 9 Avg Prop Armor Cover (%) . | . . . . Naked Turns . | . . . . Heaviest Build 22 | 12 18 19 22 Greatest Support 46 | 20 20 26 46 Greatest Overweight (x) 6 | 1 . 2 6 Average Overweight (x) . | . . . . Largest Inventory Capacity 8 | 8 8 8 8 Average Capacity 7 | 7 8 8 7 Most Carried 8 | 2 8 8 8 Average Carried 6 | . 4 6 7 Final Capacity 8 | 8 8 8 8 Final Carried 8 | 1 8 6 8 Class Distribution -------------------- 100% | Mutant Dominant Class ---------------- Mutant | -10/Materials Mutant | -9/Materials Mutant | -9/Storage Resources | -11 -10 -9 -9 ----------- Run | Yrd Mat Mat Sto Matter Collected 1041 | 217 43 190 591 Remotely 396 | . . . 396 Salvage Created 1632 | . 167 764 701 Parts 78 | . 7 27 44 Haulers Intercepted 1 | . . . 1 Recyclers Shooed . | . . . . Parts Field Recycled . | . . . . Retrieved Matter . | . . . . Parts Self-Destructed . | . . . . Prevented . | . . . . Parts Restored . | . . . . Kills | -11 -10 -9 -9 ------- Run | Yrd Mat Mat Sto Combat Hostiles Destroyed 37 | . 3 17 17 Melee 8 | . . 8 . Guns 13 | . 1 . 12 Cannons 1 | . . . 1 AOE 5 | . 1 . 4 Classes Destroyed 8 | . 2 4 2 Hauler 1 | . . . 1 Recycler 3 | . . 2 1 Operator 2 | . 1 . 1 Watcher 2 | . . 1 1 Swarmer 7 | . . 3 4 Grunt 16 | . 3 7 6 Brawler 1 | . . . 1 Sentry 13 | . . 7 6 Best Kill Streak 5 | . 2 4 5 Combat Bots Only 5 | . 2 5 4 Max Kills in Single Turn 5 | . 1 1 5 Gunslinging . | . . . . Exploded 4 | . 1 . 4 Melee 1 | . . 1 . Uniques/NPCs Destroyed . | . . . . Combat | -11 -10 -9 -9 -------- Run | Yrd Mat Mat Sto Hostile Shots Fired 190 | . 9 130 51 Missed 52 | . 2 32 18 Hits 138 | . 7 98 33 Projectile 138 | . 7 98 33 Critical Strikes 7 | . . 4 3 Damage Taken 1742 | . 129 1126 487 Core 445 | . 37 258 150 Absorbed by Shields . | . . . . Regen/Repaired (Parts) 128 | . . . 128 Core Remaining (%) 92 | 100 85 . . Volleys Fired 71 | . 15 2 54 Largest 2 | . 2 1 2 Hottest 80 | . 80 40 48 Shots Fired 122 | . 29 2 91 Gun 103 | . 28 1 74 Cannon 9 | . . . 9 Launcher 10 | . 1 1 8 Special . | . . . . Kinetic 83 | . . . 83 Thermal . | . . . . Explosive 10 | . 1 1 8 Electromagnetic 29 | . 28 1 . Robot Hit Streak 23 | . 9 2 23 Robot Miss Streak 3 | . 3 . 2 Penetration Max . | . . . . Secondary Targets . | . . . . Shots Hit Robots 115 | . 17 47 51 Core Hits 34 | . 4 8 22 Critical Kills . | . . . . Critical Parts Destroyed 11 | . . 11 . Critical Strikes 13 | . . 12 1 Blast 1 | . . . 1 Smash 12 | . . 12 . Melee Attacks 62 | . . 62 . Impact 62 | . . 62 . Slashing . | . . . . Piercing . | . . . . Sneak Attacks 3 | . . 3 . Combat Hostiles . | . . . . Follow-up Attacks 6 | . . 6 . Damage Inflicted 3537 | . 355 1723 1459 Guns 1141 | . 242 24 875 Cannons 100 | . . . 100 Explosions 592 | . 109 . 483 Melee 1699 | . . 1699 . Ramming 5 | . 4 . 1 Kinetic 975 | . . . 975 Thermal 109 | . 109 . . Explosive 483 | . . . 483 Electromagnetic 266 | . 242 24 . Impact 1699 | . . 1699 . Slashing . | . . . . Piercing . | . . . . Highest Corruption 5 | . . 2 5 Average Corruption 2 | . . 2 2 Corruption Purged . | . . . . Corruption Blocked . | . . . . Effects 35 | . . 9 26 Message Errors 7 | . . 1 6 Matter Fused 9 | . . 4 5 Heat Flow Errors 6 | . . 1 5 Energy Discharges 3 | . . 1 2 Parts Rejected 1 | . . 1 . Data Loss (minor) 5 | . . . 5 Misfires 2 | . . . 2 Alerts 1 | . . 1 . Weapon Failures 1 | . . . 1 Overload Shots . | . . . . Overflow Damage 543 | . . 518 25 Projectiles . | . . . . Explosions 25 | . . . 25 Melee 518 | . . 518 . Knockbacks 6 | . . 6 . Impact 6 | . . 6 . Kinetic . | . . . . Secondary . | . . . . Self-Inflicted Damage 79 | . 50 . 29 Shots 3 | . 1 . 2 Rammed 1 | . . . 1 Targets Rammed 2 | . 1 . 1 Kicked 1 | . 1 . . Crushed . | . . . . Highest Temperature 262 | . 180 262 202 Average Temperature 67 | . 64 109 60 Received Heat Transfer 759 | . 42 510 207 Siege Activations . | . . . . Martial Activations . | . . . . Shielding Activations . | . . . . Robots Disrupted . | . . . . Combat Hostiles . | . . . . Robots Corrupted 11 | . 1 10 . Combat Hostiles 10 | . 1 9 . Parts Fried 14 | . 1 13 . Impact Corruptions 17 | . . 17 . Robots Melted . | . . . . Combat Hostiles . | . . . . Parts Melted . | . . . . Heat Transferred 50 | . 50 . . Parts Sabotaged . | . . . . Parts Stolen . | . . . . Parts Stripped . | . . . . Power Chain Reactions 1 | . 1 . . Alert | -11 -10 -9 -9 ------- Run | Yrd Mat Mat Sto Maximum Alert Level 1 | . . 1 . Low Security (%) 99 | 100 100 96 100 Level 1 . | . . 3 . Level 2 . | . . . . Level 3 . | . . . . Level 4 . | . . . . Level 5 . | . . . . High Security . | . . . . Max Security . | . . . . Peak Influence 239 | . 69 239 148 Initial 92 | . . 3 92 Average 64 | . 15 70 87 Influence Increases 1350 | . 175 584 591 Destroy 0b10 Robot/C 740 | . 60 340 340 Destroy 0b10 Robot/NC 40 | . 5 15 20 Destroy Leader 266 | . 20 132 114 Trap Triggered on 0b10 10 | . . 10 . Successful Hack 21 | . . 17 4 Disable Machine 105 | . 45 15 45 Destroy Structure 93 | . 15 10 68 Partial Spotted 30 | . 15 15 . Lose Combat Pursuer 45 | . 15 30 . Influence Decreases 1209 | . 167 371 671 Entered New Map 134 | . . 5 129 Time Decay 985 | . 167 296 522 Lost Part 90 | . . 70 20 Squads Dispatched 7 | . 1 3 3 Investigation 2 | . . 2 . Extermination . | . . . . Reinforcement 5 | . 1 1 3 Assault . | . . . . Garrison . | . . . . Intercept . | . . . . Searches Triggered . | . . . . Construction Impeded 1 | . . . 1 Haulers Reinforced . | . . . . Active Scanning Responses . | . . . . Cargo Convoy Interrupts . | . . . . Stealth | -11 -10 -9 -9 --------- Run | Yrd Mat Mat Sto Distress Signals 1 | . . 1 . Communications Jammed . | . . . . Distress Signals . | . . . . Times Spotted 65 | . 9 32 24 Peak Tracking Total 6 | . 3 6 4 Tactical Retreats 2 | . 1 1 . Traps | -11 -10 -9 -9 ------- Run | Yrd Mat Mat Sto Traps Triggered 5 | . . 1 4 Indirectly . | . . . . Trap Hack Attempts . | . . . . Triggered . | . . . . Disarmed . | . . . . Reprogrammed 3 | . . 3 . Reused 1 | . . 1 . Traps Extracted . | . . . . Installed . | . . . . Triggered 1 | . . 1 . Machines | -11 -10 -9 -9 ---------- Run | Yrd Mat Mat Sto Machines Disabled 7 | . 3 1 3 Max in Single Turn 1 | . 1 1 1 Garrison Access 1 | . . . 1 Machines Repaired . | . . . . Machines Dismantled . | . . . . Machines Sabotaged . | . . . . Overloaded Fab Kills . | . . . . Hacking | -11 -10 -9 -9 --------- Run | Yrd Mat Mat Sto Machines Accessed 13 | . 1 2 10 Terminals 11 | . 1 2 8 Fabricators . | . . . . Repair Stations 1 | . . . 1 Recycling Units . | . . . . Scanalyzers . | . . . . Garrison Access 1 | . . . 1 Total Hacks 32 | . 3 8 21 Successful 18 | . 3 5 10 Failed 14 | . . 3 11 Catastrophic 1 | . . 1 . Database Lockouts . | . . . . Manual 6 | . . 5 1 Terminals 27 | . 3 8 16 Fabricators . | . . . . Repair Stations 4 | . . . 4 Recycling Units . | . . . . Scanalyzers . | . . . . Garrison Access 1 | . . . 1 Terminal Hacks 15 | . 3 5 7 Prototype ID Bank 1 | . 1 . . Open Door 3 | . . . 3 Emergency Access Points 1 | . 1 . . Terminal Index 1 | . . 1 . Scanalyzer Index 1 | . . 1 . Alert Level 2 | . . . 2 Locate Traps 3 | . 1 1 1 Reprogram Traps 1 | . . 1 . Dispatch Records 1 | . . . 1 Zone Layout 1 | . . 1 . Fabricator Hacks . | . . . . Repair Station Hacks 2 | . . . 2 Scan Component 1 | . . . 1 Repair 1 | . . . 1 Recycling Unit Hacks . | . . . . Scanalyzer . | . . . . Garrison Access Hacks 1 | . . . 1 Seal Access 1 | . . . 1 Unauthorized Hacks . | . . . . Terminals . | . . . . Fabricators . | . . . . Repair Stations . | . . . . Recycling Units . | . . . . Scanalyzers . | . . . . Garrison Access . | . . . . Data Cores Recovered . | . . . . Used . | . . . . Hacking Detections 8 | . 1 1 6 Full Trace Events 4 | . 1 1 2 Feedback Events . | . . . . Feedback Blocked . | . . . . Robot Schematics Acquired . | . . . . Robots Built . | . . . . Authchips . | . . . . Time . | . . . . Total Robot Build Rating . | . . . . Part Schematics Acquired . | . . . . Parts Built . | . . . . Authchips . | . . . . Time . | . . . . Total Part Build Rating . | . . . . Part Studies Acquired . | . . . . Parts Repaired 1 | . . . 1 Time 26 | . . . 26 Parts Recycled . | . . . . Recycled Matter . | . . . . Retrieved Matter . | . . . . Retrieved Components . | . . . . Parts Scanalyzed . | . . . . Part Schematics Acquired . | . . . . Parts Damaged . | . . . . Bothacking | -11 -10 -9 -9 ------------ Run | Yrd Mat Mat Sto Used RIF Installer . | . . . . Robots Hacked . | . . . . Non-combat . | . . . . Combat . | . . . . Robot Hacks Applied . | . . . . Relay Couplers Released . | . . . . Fabnet Peak Effective % . | . . . . Robots Rewired . | . . . . Allies Hacked . | . . . . Hacks Repelled . | . . . . Allies | -11 -10 -9 -9 -------- Run | Yrd Mat Mat Sto Total Allies . | . . . . Largest Group . | . . . . Highest-Rated Group . | . . . . Highest-Rated Ally . | . . . . Total Orders . | . . . . Ally Attacks . | . . . . Total Damage . | . . . . Kills . | . . . . Allies Corrupted . | . . . . Allies Melted . | . . . . Intel | -11 -10 -9 -9 ------- Run | Yrd Mat Mat Sto Active Infowar (turns) 1731 | . . 550 1181 Optics 1181 | . . . 1181 Sensors 550 | . . 550 . Robot Analysis Total . | . . . . Derelict Logs Recovered . | . . . . Drone Launches . | . . . . Drone Recoveries . | . . . . Exploration | -11 -10 -9 -9 ------------- Run | Yrd Mat Mat Sto Turns Passed 2987 | 66 718 747 1456 Spaces Moved 1679 | 49 520 383 727 Core 10 | 8 . . 2 Treads 414 | . . . 414 Legs 1141 | 41 520 269 311 Wheels . | . . . . Hover 114 | . . 114 . Flight . | . . . . Fastest Speed 50 | 50 120 116 120 Average Speed 140 | 114 120 129 162 Slowest Speed 350 | 190 120 180 350 Overloaded Moves . | . . . . Propulsion Burnouts . | . . . . Robots Hopped . | . . . . Potential Cave-ins . | . . . . Cave-ins Triggered . | . . . . Exploration Rate (%) 44 | 3 54 35 86 Regions Visited 3 Branch Regions 1 Pre-discovered Areas . | . . . . Known Exits Taken 2 | . 1 1 . Unknown Exits Taken 1 | 1 . . . Scrap Searched . | . . . . Spaces Dug 15 | . . 2 13 Terrain Destroyed 97 | . 14 11 72 Melee 2 | . . 2 . Projectile 6 | . . . 6 AOE 89 | . 14 9 66 Terrain Rammed . | . . . . Walls Destroyed . | . . . . Machines Disabled . | . . . . Actions | -11 -10 -9 -9 --------- Run | Yrd Mat Mat Sto Total 2080 | 56 585 518 921 Wait 166 | . 34 47 85 Move 1676 | 48 519 382 727 Hop . | . . . . Pick Up 34 | 2 10 7 15 Fast Attach 18 | 5 . 5 8 Attach 9 | 1 1 4 3 Detach 6 | . . 2 4 Swap 13 | . 2 4 7 Drop 25 | . 3 10 12 Fire 71 | . 15 2 54 Melee 55 | . . 55 . Ram . | . . . . Kick 1 | . 1 . . Crush 1 | . . . 1 Escape Stasis 5 | . . . 5 Rewire . | . . . . Trap . | . . . . Miscellaneous . | . . . . Route ------- -11/Scrapyard -10/Materials (discovered 3 exits: *Mat / [*Min] / *Sub) -9/Materials (discovered 2 exits: [Mat] / *Sto) -9/Storage History --------- Turn | Location | Event 4 | -11/Scrapyard | Discovered new exit (range 15) 67 | -11/Scrapyard | Entered Materials 297 | -10/Materials | Discovered new exit (range 11) 303 | -10/Materials | Build established: Mutant 552 | -10/Materials | Discovered new exit (range 12) 627 | -10/Materials | Discovered new exit (range 13) 772 | -10/Materials | Identified exit to Subcaves 783 | -10/Materials | Identified exit to Materials 785 | -10/Materials | Entered another Materials area 785 | -9/Materials | Evolved 2 slots: Utility x2 1273 | -9/Materials | Discovered new exit (range 13) 1473 | -9/Materials | Discovered new exit (range 11) 1513 | -9/Materials | Core integrity fell below 50% 1530 | -9/Materials | Identified exit to Storage 1532 | -9/Materials | Entered Storage 1562 | -9/Storage | Lost 4 parts (2p2u) 1984 | -9/Storage | Core integrity fell below 20% 2813 | -9/Storage | Repaired Sml. Storage Unit 2988 | -9/Storage | Destroyed by Y-45 Defender with Beam Rifle Last Messages --------------- K-01 Serf collects debris. Acquired 14 matter. K-01 Serf collects debris. System corrupted: Matter fused (-6). R-06 Scavenger collects Heat Sink. R-06 Scavenger collects Beam Rifle. G-34 Mercenary destroyed. K-01 Serf collects debris. B-36 Bruiser destroyed. K-01 Serf collects debris. G-34 Mercenary destroyed. K-01 Serf collects debris. R-06 Scavenger collects Lgt. Treads. System corrupted: Matter fused (-8). K-01 Serf collects debris. Acquired 42 matter. R-06 Scavenger collects Lgt. Treads. System corrupted: Heat flow error (+224). K-01 Serf collects debris. Acquired 7 matter. Map ----- +----------------------------------------------------+ | ????# "[" "!+% T | | ????# "[" [# | | ????# "]" [# ############ | | ????# "" # ############# | | ????# + / # | | ????########## # # | | ???####### # # # | | ???# + + | | ?###+######## ######### # | | # # # ##???#### # | | # ### ##??????# # | | # #?# #???????############# | | # ###+#######??############ | | ############ #???# | | ???????????# #??# | | ???????????# ##??# | | ???????????# #???# ##### | | ???????????# ]| #???# #???# | | ???????????# | #???# #???# | | ???????????# * #???# #???# | | ???????????# #???# #???##### | | ???????????# #???# #????#### | | ????##+#########+######## #??#????? | | ????# *%!! ##T#????? | | ????# k* + "????? | | ????# @ [*% k # !!# | | ????# #####Y;########## # " !!# | | ????#?????? ???????# #? #??!!# | | ????????? """"" ?????# #?##????# | | ????????# """"" ???# #???????? | | ????????# """"" #??# #???????? | | ????????# #??# #???????? | | ????????## ###########??# #???????? | | ?????????##?????????????# #???????? | | ????????????????????????# #???????? | | ???????????????????????## ##??????? | | ???????????????????????# ######## | | ???????????????????????# | | ???????????????????????# *% ^ | | ???????????????????????# = | | ???????????????????????# #####+## | | ???????????????????????######## | | ??????????????????????????????# """ | | ??????????????????????????????# """ | | ???????????????????????????#### """ | | ???????????????????????????#""" | | ???????????????????????????#"R """ | | ???????????????????????????#""" """ | | ???????????????????????????#### """ | | ??????????????????????????????# | +----------------------------------------------------+ Best States ------------- Heat Dissipation 28 Coolant Potential 50 Energy Generation 14 Energy Capacity 280 Matter Stores 300 Matter Capacity 300 Sight Range 18 Robot Scan Range 14 Terrain Scan Density 10 Evasion (%) 62 Targeting Accuracy 6 Recoil Reduction 2 Item Schematics ----------------- None Robot Schematics ------------------ None Fabricated ------------ Nothing Repaired ---------- Sml. Storage Unit | 14% | -9/Storage Studied --------- None Alien Tech Used ----------------- None Achievements -------------- Use The Force Challenges ------------ None Game ------ Seed ZipAlphaCore Manual? 0 Play Time 00:31:35 Cumulative 22.2 hours Start 2026.03.05 @ 18:39:50 End 2026.03.05 @ 19:07:15 Sessions 1 Manual Loads 0 Difficulty Rogue Special Mode None Game No. 33 Rogue 33 Adventurer 0 Explorer 0 Win Type - Total 0 Types 0/0/0/0/0/0/0/0/0/0 Lore% 6 Gallery% 19 Achievement% 17 Wizard Run 0 Options --------- Layout 1 ASCII 0 Keyboard 1 Movement Arrows Keybinds 0 Fullscreen 1 Font 24/Smallcaps Map View 50x35 Zoom Use 0% Tactical HUD 0 Map Filters NONE Filters NONE Steam 1 RUN: c66bcb59-27ca-42ab-b860-f45b6cbef599